[Event "Portugal Open 2020"]
[Site "Lisbon"]
[Date "2020.01.30"]
[Round "7.29"]
[White "Fidalgo, Andre Neves"]
[Black "Casagrande, Federico"]
[Result "1/2-1/2"]
[ECO "A40"]
[WhiteElo "2282"]
[BlackElo "1999"]
[Annotator "ChessBase"]
[PlyCount "60"]
[EventDate "2020.01.25"]
[EventType "swiss"]
[EventCountry "POR"]
[SourceTitle "playchess.com"]
[Source "ChessBase"]
[SourceQuality "1"]
[TimeControl "5400+30"]

1. d4 {[%emt 0:00:00]} Nf6 {[%emt 0:01:54]} 2. c4 {[%emt 0:00:04]} e6 {[%emt 0:00:08]} 3. g3 {[%emt 0:00:09]} Bb4+ {[%emt 0:02:03]} 4. Bd2 {[%emt 0:00:06]} a5 {[%emt 0:02:30]} 5. Nf3 {[%emt 0:00:16]} O-O {[%emt 0:00:12]} 6. Bg2 {[%emt 0:00:15]} d5 {[%emt 0:00:11]} 7. a3 {[%emt 0:03:50]} Be7 {[%emt 0:02:39]} 8. Qc2 {[%emt 0:00:34]} c6 {[%emt 0:00:32]} 9. O-O {[%emt 0:00:12]} Nbd7 {[%emt 0:00:52]} 10. a4 {[%emt 0:03:33]} b6 {[%emt 0:04:43]} 11. cxd5 {[%emt 0:03:42]} cxd5 {[%emt 0:00:11]} 12. Nc3 {[%emt 0:00:05]} Ba6 {[%emt 0:03:16]} 13. Rfc1 {[%emt 0:01:22]} Rc8 {[%emt 0:01:04]} 14. Qd1 {[%emt 0:00:05]} Nb8 {[%emt 0:11:24]} 15. Ne5 {[%emt 0:01:21]} Nfd7 {[%emt 0:01:21]} 16. Nf3 {[%emt 0:02:50]} Nc6 {[%emt 0:03:15]} 17. Nb5 {[%emt 0:00:26]} Nf6 {[%emt 0:03:19]} 18. Bf4 {[%emt 0:00:47]} Nh5 {[%emt 0:05:51]} 19. Bd2 {[%emt 0:20:03]} Nf6 {[%emt 0:04:51]} 20. Bf4 {[%emt 0:05:58]} Nh5 {[%emt 0:00:30]} 21. Bf1 {[%emt 0:09:33]} Nxf4 {[%emt 0:11:25]} 22. gxf4 {[%emt 0:00:43]} Bxb5 {[%emt 0:00:38]} 23. axb5 {[%emt 0:00:06]} Na7 {[%emt 0:00:49]} 24. e3 {[%emt 0:00:37]} Bd6 {[%emt 0:01:32]} 25. Bd3 {[%emt 0:00:26]} Qd7 {[%emt 0:07:36]} 26. Qf1 {[%emt 0:07:23]} Rxc1 {[%emt 0:05:32]} 27. Rxc1 {[%emt 0:00:06]} Rc8 {[%emt 0:00:05]} 28. Ra1 {[%emt 0:12:03]} Rc7 {[%emt 0:05:39]} 29. Qh3 {[%emt 0:01:05]} f5 {[%emt 0:01:20]} 30. Qf1 {[%emt 0:02:25]} Nc8 {[%emt 0:04:01]} 1/2-1/2

[Event "Portugal Open 2020"]
[Site "Lisbon"]
[Date "2020.01.30"]
[Round "7.30"]
[White "Frois, Antonio"]
[Black "Kurylski, Leonardo Tavares"]
[Result "1-0"]
[ECO "A04"]
[WhiteElo "2273"]
[BlackElo "1980"]
[Annotator "ChessBase"]
[PlyCount "64"]
[EventDate "2020.01.25"]
[EventType "swiss"]
[EventCountry "POR"]
[SourceTitle "playchess.com"]
[Source "ChessBase"]
[SourceQuality "1"]
[TimeControl "5400+30"]

1. Nf3 b6 {[%emt 0:03:31]} 2. g3 {[%emt 0:00:00]} Bb7 {[%emt 0:00:06]} 3. Bg2 {[%emt 0:00:04]} g6 {[%emt 0:01:32]} 4. O-O {[%emt 0:00:08]} Bg7 {[%emt 0:00:04]} 5. c4 {[%emt 0:00:07]} e5 {[%emt 0:00:34]} 6. Nc3 {[%emt 0:00:52]} Ne7 {[%emt 0:00:18]} 7. d4 {[%emt 0:03:50]} exd4 {[%emt 0:00:17]} 8. Nxd4 {[%emt 0:00:04]} Bxg2 {[%emt 0:00:11]} 9. Kxg2 {[%emt 0:00:04]} Nbc6 {[%emt 0:05:42]} 10. Be3 {[%emt 0:01:02]} O-O {[%emt 0:00:44]} 11. Nxc6 {[%emt 0:05:20]} Nxc6 {[%emt 0:00:19]} 12. Qd2 {[%emt 0:01:05]} Ne5 {[%emt 0:11:18]} 13. b3 {[%emt 0:00:50]} Ng4 {[%emt 0:00:30]} 14. Bd4 {[%emt 0:00:27]} Nf6 {[%emt 0:02:54]} 15. Rad1 {[%emt 0:04:30]} Re8 {[%emt 0:04:21]} 16. Rfe1 {[%emt 0:00:17]} d6 {[%emt 0:01:12]} 17. e4 {[%emt 0:03:16]} Qd7 {[%emt 0:03:14]} 18. f3 {[%emt 0:00:25]} h5 {[%emt 0:00:28]} 19. Qf4 {[%emt 0:08:01]} Nh7 {[%emt 0:15:19]} 20. Bxg7 {[%emt 0:01:25]} Kxg7 {[%emt 0:03:08]} 21. e5 {[%emt 0:00:30]} Rad8 {[%emt 0:00:22]} 22. Re4 {[%emt 0:05:17]} dxe5 {[%emt 0:05:53]} 23. Rxe5 {[%emt 0:01:26]} Qc6 {[%emt 0:00:07]} 24. Nd5 {[%emt 0:00:08]} Nf6 {[%emt 0:00:06]} 25. Rxe8 Rxe8 {[%emt 0:00:20]} 26. Nxc7 {[%emt 0:07:36]} Re2+ {[%emt 0:00:52]} 27. Kf1 {[%emt 0:00:05]} Rxh2 {[%emt 0:01:20]} 28. Rd6 {[%emt 0:00:59]} Qxc7 {[%emt 0:07:07]} 29. Qxf6+ {[%emt 0:00:09]} Kh7 {[%emt 0:01:00]} 30. Rd8 {[%emt 0:00:26]} Qxd8 {[%emt 0:00:02]} 31. Qxd8 {[%emt 0:00:11]} Rxa2 {[%emt 0:00:18]} 32. Qf8 {[%emt 0:00:27]} Ra5 1-0

[Event "Portugal Open 2020"]
[Site "Lisbon"]
[Date "2020.01.30"]
[Round "7.31"]
[White "Grabuzova, Tatiana"]
[Black "Botelho, Luis Miguel Rodrigue"]
[Result "1-0"]
[ECO "B06"]
[WhiteElo "2284"]
[BlackElo "1987"]
[Annotator "ChessBase"]
[PlyCount "119"]
[EventDate "2020.01.25"]
[EventType "swiss"]
[EventCountry "POR"]
[SourceTitle "playchess.com"]
[Source "ChessBase"]
[SourceQuality "1"]
[TimeControl "5400+30"]

1. d4 {[%emt 0:06:10]} g6 {[%emt 0:02:15]} 2. e4 {[%emt 0:00:58]} Bg7 {[%emt 0:00:34]} 3. Nf3 {[%emt 0:00:10]} c5 {[%emt 0:00:10]} 4. dxc5 {[%emt 0:00:21]} Qa5+ {[%emt 0:00:24]} 5. c3 {[%emt 0:00:09]} Qxc5 {[%emt 0:00:12]} 6. Na3 {[%emt 0:00:15]} Nf6 {[%emt 0:01:36]} 7. Be3 {[%emt 0:11:20]} Qa5 {[%emt 0:02:01]} 8. e5 {[%emt 0:19:33]} Ng4 {[%emt 0:15:35]} 9. Bd4 {[%emt 0:00:19]} Nc6 {[%emt 0:06:44]} 10. Nc4 {[%emt 0:01:00]} Qd5 {[%emt 0:03:05]} 11. h3 {[%emt 0:05:03]} Nxd4 {[%emt 0:04:52]} 12. Qxd4 {[%emt 0:01:42]} Qxd4 {[%emt 0:01:56]} 13. cxd4 {[%emt 0:01:36]} Nh6 {[%emt 0:01:31]} 14. Bd3 {[%emt 0:00:50]} O-O {[%emt 0:00:53]} 15. O-O {[%emt 0:03:23]} b6 {[%emt 0:08:32]} 16. Be4 {[%emt 0:02:10]} Rb8 {[%emt 0:00:06]} 17. Rfc1 {[%emt 0:01:52]} Ba6 {[%emt 0:00:39]} 18. Ne3 {[%emt 0:01:02]} Bb7 {[%emt 0:11:36]} 19. Bxb7 {[%emt 0:06:09]} Rxb7 {[%emt 0:00:05]} 20. Nd5 {[%emt 0:01:50]} Re8 {[%emt 0:03:41]} 21. Rc8 {[%emt 0:11:23]} Rxc8 {[%emt 0:09:17]} 22. Nxe7+ {[%emt 0:00:06]} Kf8 {[%emt 0:00:11]} 23. Nxc8 {[%emt 0:00:04]} Rc7 {[%emt 0:00:10]} 24. Nd6 {[%emt 0:00:04]} Rc2 {[%emt 0:00:46]} 25. Rd1 {[%emt 0:03:43]} f6 {[%emt 0:00:45]} 26. exf6 {[%emt 0:04:47]} Bxf6 {[%emt 0:00:10]} 27. Ne4 {[%emt 0:00:22]} Bg7 {[%emt 0:01:03]} 28. Rd2 {[%emt 0:03:00]} Rc1+ {[%emt 0:05:04]} 29. Kh2 {[%emt 0:00:07]} Nf5 {[%emt 0:01:03]} 30. g4 {[%emt 0:01:51]} Ne7 {[%emt 0:01:18]} 31. Ne5 {[%emt 0:02:25]} Re1 {[%emt 0:04:24]} 32. Nxd7+ {[%emt 0:02:18]} Ke8 {[%emt 0:07:43]} 33. Ndf6+ {[%emt 0:00:17]} Kf7 {[%emt 0:00:14]} 34. g5 {[%emt 0:00:31]} Nf5 {[%emt 0:00:25]} 35. d5 {[%emt 0:02:27]} h6 {[%emt 0:01:53]} 36. d6 {[%emt 0:03:17]} Bxf6 {[%emt 0:05:22]} 37. Nxf6 {[%emt 0:00:16]} Nxd6 {[%emt 0:01:00]} 38. Rxd6 {[%emt 0:00:15]} hxg5 {[%emt 0:00:04]} 39. Ng4 {[%emt 0:00:26]} Re2 {[%emt 0:00:09]} 40. Rd7+ {[%emt 0:00:17]} Ke6 {[%emt 0:00:11]} 41. Rxa7 {[%emt 0:00:03]} Rxb2 {[%emt 0:00:10]} 42. Rg7 {[%emt 0:00:51]} Kf5 {[%emt 0:00:20]} 43. Rf7+ {[%emt 0:00:19]} Ke4 {[%emt 0:00:36]} 44. Rf6 {[%emt 0:00:16]} b5 {[%emt 0:00:12]} 45. Rxg6 {[%emt 0:00:06]} b4 {[%emt 0:00:30]} 46. Rxg5 {[%emt 0:00:29]} Rxa2 {[%emt 0:00:10]} 47. Rb5 {[%emt 0:00:07]} Rb2 {[%emt 0:00:06]} 48. Kg2 {[%emt 0:00:47]} b3 {[%emt 0:00:57]} 49. h4 {[%emt 0:02:12]} Kd4 {[%emt 0:00:43]} 50. Ne3 {[%emt 0:02:20]} Rb1 {[%emt 0:00:35]} 51. h5 {[%emt 0:00:48]} Kc3 {[%emt 0:00:40]} 52. h6 {[%emt 0:00:43]} Ra1 {[%emt 0:00:15]} 53. h7 {[%emt 0:00:09]} Ra8 {[%emt 0:00:21]} 54. Rb7 {[%emt 0:01:44]} Rh8 {[%emt 0:00:53]} 55. Rc7+ {[%emt 0:01:07]} Kd3 {[%emt 0:00:08]} 56. Nc4 {[%emt 0:00:15]} Kc2 {[%emt 0:01:24]} 57. Na5+ {[%emt 0:00:15]} Kb2 {[%emt 0:00:29]} 58. Kg3 {[%emt 0:01:19]} Ka2 {[%emt 0:00:23]} 59. Nxb3 {[%emt 0:00:05]} Kxb3 {[%emt 0:00:08]} 60. Kg4 {[%emt 0:00:11]} 1-0

[Event "Portugal Open 2020"]
[Site "Lisbon"]
[Date "2020.01.30"]
[Round "7.32"]
[White "Cordeiro, Joao Carlos Santos F"]
[Black "Corbalan Gomez, Juan Jose"]
[Result "0-1"]
[ECO "B89"]
[WhiteElo "2005"]
[BlackElo "2243"]
[Annotator "ChessBase"]
[PlyCount "48"]
[EventDate "2020.01.25"]
[EventType "swiss"]
[EventCountry "POR"]
[SourceTitle "playchess.com"]
[Source "ChessBase"]
[SourceQuality "1"]
[TimeControl "5400+30"]

1. e4 {[%emt 0:00:18]} c5 {[%emt 0:02:08]} 2. Nf3 {[%emt 0:00:22]} Nc6 {[%emt 0:00:03]} 3. d4 {[%emt 0:00:14]} cxd4 {[%emt 0:00:06]} 4. Nxd4 {[%emt 0:00:05]} Nf6 {[%emt 0:00:08]} 5. Nc3 {[%emt 0:00:04]} d6 {[%emt 0:00:07]} 6. Bc4 {[%emt 0:03:11]} e6 {[%emt 0:00:34]} 7. Be3 {[%emt 0:01:32]} a6 {[%emt 0:01:39]} 8. Bb3 {[%emt 0:00:27]} Be7 {[%emt 0:01:35]} 9. Qe2 {[%emt 0:01:59]} O-O {[%emt 0:02:07]} 10. O-O-O {[%emt 0:01:32]} Qc7 {[%emt 0:03:46]} 11. Kb1 {[%emt 0:02:35]} Bd7 {[%emt 0:01:23]} 12. f3 {[%emt 0:03:20]} b5 {[%emt 0:01:25]} 13. Qf2 {[%emt 0:33:47]} Nxd4 {[%emt 0:02:43]} 14. Bxd4 {[%emt 0:00:22]} a5 {[%emt 0:00:20]} 15. a4 {[%emt 0:03:16]} Rfb8 {[%emt 0:12:46]} 16. axb5 {[%emt 0:13:48]} Bxb5 {[%emt 0:00:45]} 17. Nxb5 {[%emt 0:00:42]} Rxb5 {[%emt 0:00:07]} 18. Ba4 {[%emt 0:00:55]} Rb4 {[%emt 0:01:09]} 19. b3 {[%emt 0:00:18]} Rab8 {[%emt 0:00:27]} 20. Bb2 {[%emt 0:00:31]} Rxa4 {[%emt 0:01:43]} 21. bxa4 {[%emt 0:03:24]} Qc3 {[%emt 0:00:07]} 22. Kc1 {[%emt 0:01:03]} Qxb2+ {[%emt 0:01:35]} 23. Kd2 {[%emt 0:00:03]} Rc8 {[%emt 0:07:19]} 24. Rc1 {[%emt 0:00:34]} Nxe4+ {[%emt 0:00:35]} 0-1

[Event "Portugal Open 2020"]
[Site "Lisbon"]
[Date "2020.01.30"]
[Round "7.33"]
[White "Hill, Alistair"]
[Black "Ruiz Bellon, Manuel"]
[Result "1-0"]
[ECO "A30"]
[WhiteElo "2217"]
[BlackElo "1985"]
[Annotator "ChessBase"]
[PlyCount "75"]
[EventDate "2020.01.25"]
[EventType "swiss"]
[EventCountry "POR"]
[SourceTitle "playchess.com"]
[Source "ChessBase"]
[SourceQuality "1"]
[TimeControl "5400+30"]

1. c4 {[%emt 0:00:20]} Nf6 {[%emt 0:00:00]} 2. Nf3 {[%emt 0:00:05]} e6 {[%emt 0:00:00]} 3. g3 {[%emt 0:00:22]} b6 {[%emt 0:00:02]} 4. Bg2 {[%emt 0:00:04]} Bb7 {[%emt 0:00:59]} 5. O-O {[%emt 0:00:05]} c5 {[%emt 0:00:12]} 6. Nc3 {[%emt 0:00:10]} Be7 {[%emt 0:00:39]} 7. d4 {[%emt 0:00:12]} cxd4 {[%emt 0:02:41]} 8. Qxd4 {[%emt 0:00:07]} Nc6 {[%emt 0:00:11]} 9. Qf4 {[%emt 0:00:06]} d6 {[%emt 0:01:19]} 10. e4 {[%emt 0:00:30]} O-O {[%emt 0:02:00]} 11. Rd1 {[%emt 0:02:53]} Qc8 {[%emt 0:00:36]} 12. b3 {[%emt 0:02:00]} Rd8 {[%emt 0:07:55]} 13. Bb2 {[%emt 0:01:49]} a6 {[%emt 0:04:12]} 14. Rd2 {[%emt 0:10:50]} Qc7 {[%emt 0:09:41]} 15. Rad1 {[%emt 0:00:30]} Nd7 {[%emt 0:03:19]} 16. Qe3 {[%emt 0:11:19]} Nde5 {[%emt 0:07:25]} 17. Ne1 {[%emt 0:00:13]} Ng4 {[%emt 0:02:30]} 18. Qe2 {[%emt 0:00:27]} Nf6 {[%emt 0:01:41]} 19. h3 {[%emt 0:05:15]} Na7 {[%emt 0:11:05]} 20. Rc2 {[%emt 0:06:27]} Nc6 {[%emt 0:03:08]} 21. Kh2 {[%emt 0:03:37]} Nb4 {[%emt 0:08:16]} 22. Rcd2 {[%emt 0:02:26]} e5 {[%emt 0:02:33]} 23. Nc2 {[%emt 0:03:00]} Nxc2 {[%emt 0:06:08]} 24. Rxc2 {[%emt 0:00:05]} Qd7 {[%emt 0:02:33]} 25. Rdc1 {[%emt 0:06:30]} Ne8 {[%emt 0:04:54]} 26. h4 {[%emt 0:00:31]} f5 {[%emt 0:01:23]} 27. Bh3 {[%emt 0:01:12]} g6 {[%emt 0:00:21]} 28. Nd5 {[%emt 0:01:00]} Bxd5 {[%emt 0:07:05]} 29. cxd5 {[%emt 0:00:05]} Rdc8 {[%emt 0:00:17]} 30. exf5 {[%emt 0:03:35]} gxf5 {[%emt 0:01:12]} 31. Rxc8 {[%emt 0:00:07]} Rxc8 {[%emt 0:00:20]} 32. Qxa6 {[%emt 0:00:10]} Rxc1 {[%emt 0:00:28]} 33. Bxc1 {[%emt 0:00:04]} Qc7 {[%emt 0:00:51]} 34. Be3 {[%emt 0:02:35]} f4 {[%emt 0:01:31]} 35. gxf4 {[%emt 0:02:36]} exf4 {[%emt 0:01:22]} 36. Bxb6 {[%emt 0:02:04]} Qc2 {[%emt 0:02:04]} 37. Qa8 {[%emt 0:00:59]} Qg6 {[%emt 0:02:05]} 38. Bd7 {[%emt 0:00:35]} 1-0

[Event "Portugal Open 2020"]
[Site "Lisbon"]
[Date "2020.01.30"]
[Round "7.34"]
[White "Moretti, Filippo"]
[Black "Palozza, Christian"]
[Result "0-1"]
[ECO "B15"]
[WhiteElo "1969"]
[BlackElo "2198"]
[Annotator "ChessBase"]
[PlyCount "68"]
[EventDate "2020.01.25"]
[EventType "swiss"]
[EventCountry "POR"]
[SourceTitle "playchess.com"]
[Source "ChessBase"]
[SourceQuality "1"]
[TimeControl "5400+30"]

1. e4 c6 {[%emt 0:00:34]} 2. d4 {[%emt 0:04:24]} d5 {[%emt 0:00:04]} 3. Nc3 {[%emt 0:00:22]} dxe4 {[%emt 0:00:07]} 4. Nxe4 {[%emt 0:00:06]} Nf6 {[%emt 0:00:03]} 5. Nxf6+ {[%emt 0:01:09]} exf6 {[%emt 0:00:05]} 6. Be3 {[%emt 0:01:04]} Be6 {[%emt 0:00:25]} 7. c3 {[%emt 0:02:07]} Bd6 {[%emt 0:00:11]} 8. Bd3 {[%emt 0:00:16]} Nd7 {[%emt 0:00:33]} 9. Qc2 {[%emt 0:01:29]} h5 {[%emt 0:00:50]} 10. Nf3 {[%emt 0:00:40]} Qc7 {[%emt 0:03:21]} 11. h3 {[%emt 0:03:51]} Bf4 {[%emt 0:11:56]} 12. Bxf4 {[%emt 0:02:58]} Qxf4 {[%emt 0:00:01]} 13. Qd2 {[%emt 0:00:51]} Qd6 {[%emt 0:01:29]} 14. b3 {[%emt 0:01:18]} O-O-O {[%emt 0:07:31]} 15. O-O-O {[%emt 0:04:27]} Bd5 {[%emt 0:00:35]} 16. Nh4 g6 {[%emt 0:05:55]} 17. Rhe1 {[%emt 0:08:58]} Rhe8 {[%emt 0:04:07]} 18. g3 {[%emt 0:04:17]} f5 {[%emt 0:06:02]} 19. Bf1 {[%emt 0:03:54]} Nf6 {[%emt 0:05:23]} 20. Bg2 {[%emt 0:08:04]} Rxe1 {[%emt 0:08:09]} 21. Rxe1 {[%emt 0:00:23]} Bxg2 {[%emt 0:00:05]} 22. Nxg2 {[%emt 0:00:10]} c5 {[%emt 0:00:03]} 23. Rd1 {[%emt 0:04:30]} Qc6 {[%emt 0:02:13]} 24. Nf4 {[%emt 0:02:57]} cxd4 {[%emt 0:00:15]} 25. c4 {[%emt 0:02:04]} Qa6 {[%emt 0:11:55]} 26. f3 {[%emt 0:03:19]} Qd6 {[%emt 0:07:09]} 27. Qf2 {[%emt 0:02:39]} h4 {[%emt 0:00:57]} 28. Ne2 {[%emt 0:02:07]} hxg3 {[%emt 0:00:59]} 29. Nxg3 {[%emt 0:01:03]} Qf4+ {[%emt 0:03:26]} 30. Kb1 {[%emt 0:02:49]} Qe3 {[%emt 0:00:45]} 31. Qe2 {[%emt 0:03:47]} f4 {[%emt 0:00:49]} 32. Qxe3 {[%emt 0:00:39]} dxe3 {[%emt 0:00:08]} 33. Rxd8+ {[%emt 0:00:12]} Kxd8 {[%emt 0:00:04]} 34. Ne2 {[%emt 0:00:08]} Nh5 {[%emt 0:00:06]} 0-1

[Event "Portugal Open 2020"]
[Site "Lisbon"]
[Date "2020.01.30"]
[Round "7.35"]
[White "Jorge, Rita Maria Osorio"]
[Black "Krzywda, Andrzej"]
[Result "1-0"]
[ECO "B19"]
[WhiteElo "1932"]
[BlackElo "2178"]
[Annotator "ChessBase"]
[PlyCount "169"]
[EventDate "2020.01.25"]
[EventType "swiss"]
[EventCountry "POR"]
[SourceTitle "playchess.com"]
[Source "ChessBase"]
[SourceQuality "1"]
[TimeControl "5400+30"]

1. e4 {[%emt 0:00:00]} c6 {[%emt 0:00:00]} 2. d4 {[%emt 0:00:00]} d5 {[%emt 0:00:00]} 3. Nd2 {[%emt 0:00:18]} dxe4 {[%emt 0:00:00]} 4. Nxe4 {[%emt 0:00:05]} Bf5 {[%emt 0:00:00]} 5. Ng3 {[%emt 0:00:08]} Bg6 {[%emt 0:00:00]} 6. Nf3 {[%emt 0:00:18]} Nd7 {[%emt 0:00:58]} 7. h4 {[%emt 0:00:31]} h6 {[%emt 0:00:22]} 8. h5 {[%emt 0:00:11]} Bh7 {[%emt 0:00:06]} 9. Bd3 {[%emt 0:00:07]} Bxd3 {[%emt 0:00:06]} 10. Qxd3 {[%emt 0:00:04]} e6 {[%emt 0:00:08]} 11. Bf4 {[%emt 0:00:11]} Qa5+ {[%emt 0:00:31]} 12. Bd2 {[%emt 0:00:18]} Bb4 {[%emt 0:00:06]} 13. a3 {[%emt 0:02:54]} Bxd2+ {[%emt 0:00:14]} 14. Qxd2 {[%emt 0:00:28]} Qxd2+ {[%emt 0:00:24]} 15. Nxd2 {[%emt 0:00:52]} Ngf6 {[%emt 0:00:52]} 16. O-O-O {[%emt 0:00:45]} O-O {[%emt 0:04:57]} 17. Nde4 {[%emt 0:01:09]} Rfd8 {[%emt 0:03:01]} 18. Rhe1 {[%emt 0:02:44]} Rac8 {[%emt 0:04:11]} 19. Kb1 {[%emt 0:03:48]} Kf8 {[%emt 0:09:11]} 20. f4 {[%emt 0:10:42]} Nxe4 {[%emt 0:11:01]} 21. Nxe4 {[%emt 0:04:24]} Nb6 {[%emt 0:00:11]} 22. Nc5 {[%emt 0:09:57]} Rb8 {[%emt 0:00:20]} 23. g4 {[%emt 0:15:01]} Nd5 {[%emt 0:02:29]} 24. Nd3 {[%emt 0:01:42]} Rbc8 {[%emt 0:05:43]} 25. c3 {[%emt 0:16:06]} Nf6 {[%emt 0:07:19]} 26. Ne5 {[%emt 0:06:21]} Nd5 {[%emt 0:04:26]} 27. Rd2 {[%emt 0:03:44]} Rc7 {[%emt 0:05:25]} 28. Nd3 {[%emt 0:07:11]} Nf6 {[%emt 0:03:56]} 29. Ne5 {[%emt 0:02:52]} c5 {[%emt 0:02:04]} 30. Red1 {[%emt 0:02:55]} Ne4 {[%emt 0:03:33]} 31. Re2 {[%emt 0:01:06]} Nf6 {[%emt 0:03:04]} 32. Red2 {[%emt 0:00:17]} Ne4 {[%emt 0:08:26]} 33. Re2 {[%emt 0:00:53]} f5 {[%emt 0:14:11]} 34. gxf5 {[%emt 0:03:20]} exf5 {[%emt 0:02:11]} 35. d5 {[%emt 0:03:11]} c4 {[%emt 0:00:36]} 36. Rd4 {[%emt 0:01:24]} b5 {[%emt 0:01:52]} 37. Ng6+ {[%emt 0:00:27]} Kf7 {[%emt 0:00:16]} 38. Nh4 {[%emt 0:00:45]} Ng3 {[%emt 0:02:50]} 39. Re5 {[%emt 0:00:26]} Nxh5 {[%emt 0:00:49]} 40. Nxf5 {[%emt 0:00:41]} Nf6 {[%emt 0:00:37]} 41. d6 {[%emt 0:00:27]} Rcd7 {[%emt 0:02:34]} 42. Rxb5 {[%emt 0:00:34]} g6 {[%emt 0:00:09]} 43. Ne3 {[%emt 0:00:50]} Rxd6 {[%emt 0:00:18]} 44. Rxd6 {[%emt 0:00:34]} Rxd6 {[%emt 0:00:01]} 45. Nxc4 {[%emt 0:00:10]} Rd1+ {[%emt 0:01:00]} 46. Kc2 {[%emt 0:00:04]} Rg1 {[%emt 0:00:31]} 47. Ne5+ {[%emt 0:00:36]} Kg8 {[%emt 0:01:19]} 48. Rb8+ {[%emt 0:00:24]} Kg7 {[%emt 0:00:01]} 49. Rb7+ {[%emt 0:00:11]} Kg8 {[%emt 0:00:01]} 50. Rxa7 {[%emt 0:00:16]} h5 {[%emt 0:00:08]} 51. Ra6 {[%emt 0:01:14]} Kg7 {[%emt 0:00:13]} 52. Ra7+ {[%emt 0:01:20]} Kg8 {[%emt 0:00:01]} 53. b4 {[%emt 0:00:53]} h4 {[%emt 0:00:09]} 54. b5 {[%emt 0:00:17]} Nd5 {[%emt 0:02:09]} 55. Nf3 {[%emt 0:00:32]} Rg2+ {[%emt 0:00:28]} 56. Kb3 {[%emt 0:00:37]} h3 {[%emt 0:00:10]} 57. Rd7 {[%emt 0:00:12]} Nb6 {[%emt 0:01:29]} 58. Rd1 {[%emt 0:00:43]} Rf2 {[%emt 0:00:55]} 59. Ng5 {[%emt 0:00:29]} h2 {[%emt 0:00:17]} 60. Rh1 {[%emt 0:00:15]} Nd5 {[%emt 0:00:37]} 61. a4 {[%emt 0:00:56]} Nxf4 {[%emt 0:00:34]} 62. b6 {[%emt 0:00:15]} Nd3 {[%emt 0:00:40]} 63. a5 {[%emt 0:00:43]} Rf5 {[%emt 0:00:42]} 64. Ne4 {[%emt 0:00:37]} Rxa5 {[%emt 0:00:22]} 65. Rxh2 {[%emt 0:00:07]} Ne5 {[%emt 0:00:38]} 66. c4 {[%emt 0:00:23]} Ra8 {[%emt 0:00:34]} 67. c5 {[%emt 0:00:37]} Nc6 {[%emt 0:00:29]} 68. Rd2 {[%emt 0:00:41]} Kf7 {[%emt 0:00:18]} 69. Rd7+ {[%emt 0:00:32]} Kf8 {[%emt 0:00:42]} 70. Nd6 {[%emt 0:00:36]} Rb8 {[%emt 0:00:21]} 71. Rf7+ {[%emt 0:00:24]} Kg8 {[%emt 0:00:01]} 72. Rc7 {[%emt 0:00:11]} Nd8 {[%emt 0:01:06]} 73. Kb4 {[%emt 0:00:46]} g5 {[%emt 0:00:13]} 74. Kb5 {[%emt 0:00:22]} g4 {[%emt 0:00:18]} 75. Nf5 {[%emt 0:00:41]} Nf7 {[%emt 0:00:57]} 76. b7 {[%emt 0:00:21]} Nd8 {[%emt 0:00:16]} 77. c6 {[%emt 0:00:14]} g3 {[%emt 0:00:30]} 78. Nxg3 {[%emt 0:00:22]} Nxc6 {[%emt 0:00:45]} 79. Kxc6 {[%emt 0:00:12]} Rxb7 {[%emt 0:00:20]} 80. Rxb7 {[%emt 0:00:07]} Kh8 {[%emt 0:00:03]} 81. Kd6 {[%emt 0:00:05]} Kg8 {[%emt 0:00:04]} 82. Ke6 {[%emt 0:00:04]} Kf8 {[%emt 0:00:04]} 83. Nf5 {[%emt 0:00:09]} Kg8 {[%emt 0:00:04]} 84. Kf6 {[%emt 0:00:06]} Kh8 {[%emt 0:00:04]} 85. Kg6 {[%emt 0:00:05]} 1-0

[Event "Portugal Open 2020"]
[Site "Lisbon"]
[Date "2020.01.30"]
[Round "7.38"]
[White "Saltao, Joao Miguel Ramos"]
[Black "Pires, Emanuel Joao Robarts"]
[Result "1-0"]
[ECO "B00"]
[WhiteElo "1912"]
[BlackElo "2112"]
[Annotator "RC"]
[PlyCount "103"]
[EventDate "2020.01.25"]
[EventType "swiss"]
[EventCountry "POR"]
[SourceTitle "playchess.com"]
[Source "ChessBase"]
[SourceQuality "1"]
[TimeControl "5400+30"]

1. e4 {[%emt 0:00:35]} d6 {[%emt 0:01:41]} 2. d4 {[%emt 0:01:01]} Nf6 {[%emt 0:00:10]} 3. Bd3 {[%emt 0:00:05]} e5 {[%emt 0:00:27]} 4. Nf3 {[%emt 0:02:14]} Nbd7 {[%emt 0:00:20]} 5. O-O {[%emt 0:00:50]} Be7 {[%emt 0:00:20]} 6. Nbd2 {[%emt 0:01:40]} c6 {[%emt 0:00:19]} 7. Nc4 {[%emt 0:01:14]} Qc7 {[%emt 0:01:30]} 8. a4 {[%emt 0:00:16]} h6 {[%emt 0:01:15]} 9. c3 {[%emt 0:02:44]} O-O {[%emt 0:03:26]} 10. Qe2 {[%emt 0:01:41]} Re8 {[%emt 0:00:21]} 11. dxe5 {[%emt 0:00:58]} dxe5 {[%emt 0:03:24]} 12. Rd1 {[%emt 0:01:40]} Bf8 {[%emt 0:00:20]} 13. h3 {[%emt 0:01:28]} a5 {[%emt 0:05:42]} 14. Bc2 {[%emt 0:04:54]} Nh5 {[%emt 0:06:00]} 15. Nh2 {[%emt 0:26:04]} Nf4 {[%emt 0:03:06]} 16. Qf3 {[%emt 0:00:36]} Nf6 {[%emt 0:05:42]} 17. Be3 {[%emt 0:03:01]} b5 {[%emt 0:04:15]} 18. Nb6 {[%emt 0:02:50]} Rb8 {[%emt 0:04:04]} 19. Nxc8 {[%emt 0:07:33]} Rexc8 {[%emt 0:01:46]} 20. axb5 {[%emt 0:04:38]} Rxb5 {[%emt 0:07:18]} 21. Bc1 {[%emt 0:00:51]} Rbb8 {[%emt 0:09:44]} 22. Nf1 {[%emt 0:04:18]} Nd7 {[%emt 0:08:31]} 23. Ne3 {[%emt 0:01:37]} Nc5 {[%emt 0:04:19]} 24. Nc4 {[%emt 0:01:26]} Ra8 {[%emt 0:02:41]} 25. Kh2 {[%emt 0:03:08]} a4 {[%emt 0:01:15]} 26. g3 {[%emt 0:04:12]} Ng6 {[%emt 0:06:30]} 27. Qg4 {[%emt 0:01:55]} Re8 {[%emt 0:03:52]} 28. Be3 {[%emt 0:01:08]} Red8 {[%emt 0:03:09]} 29. h4 {[%emt 0:01:18]} Qc8 {[%emt 0:06:23]} 30. Qxc8 {[%emt 0:00:55]} Raxc8 {[%emt 0:00:02]} 31. Rxd8 {[%emt 0:02:56]} Rxd8 {[%emt 0:00:01]} 32. h5 {[%emt 0:00:08]} Nh8 {[%emt 0:00:21]} 33. Nxe5 {[%emt 0:00:20]} Re8 {[%emt 0:01:17]} 34. Nxc6 {[%emt 0:06:02]} Nxe4 {[%emt 0:00:18]} 35. Bxe4 {[%emt 0:00:45]} Rxe4 {[%emt 0:00:01]} 36. Nd4 {[%emt 0:00:11]} Re5 {[%emt 0:01:12]} 37. Rxa4 {[%emt 0:00:31]} Rxh5+ {[%emt 0:00:01]} 38. Kg2 {[%emt 0:00:09]} Ng6 {[%emt 0:01:25]} 39. Ra7 {[%emt 0:01:06]} Ne7 {[%emt 0:01:31]} 40. Ra8 {[%emt 0:00:44]} Nd5 {[%emt 0:00:59]} 41. Bd2 {[%emt 0:01:35]} Re5 {[%emt 0:00:29]} 42. b4 {[%emt 0:01:42]} g5 {[%emt 0:00:49]} 43. Ra5 {[%emt 0:00:14]} Bg7 {[%emt 0:01:44]} 44. Nc6 {[%emt 0:01:22]} Re6 {[%emt 0:00:31]} 45. Rxd5 {[%emt 0:00:45]} Rxc6 {[%emt 0:00:01]} 46. b5 {[%emt 0:00:09]} Re6 {[%emt 0:00:31]} 47. c4 {[%emt 0:00:46]} Re2 {[%emt 0:01:35]} 48. c5 {[%emt 0:00:28]} f5 {[%emt 0:00:46]} 49. c6 {[%emt 0:00:26]} Be5 {[%emt 0:00:17]} 50. b6 {[%emt 0:00:41]} f4 {[%emt 0:00:11]} 51. gxf4 {[%emt 0:00:06]} gxf4 {[%emt 0:00:14]} 52. c7 {[%emt 0:00:22]} 1-0